[Event "Open Nuevo Centro. Jornada 2"]
[Site "Chess.com"]
[Date "2020.06.26"]
[Round "6"]
[White "Bosch Jordà, Ricard"]
[Black "Gutierrez Marco, Dario"]
[Result "0-1"]
[WhiteElo "1753"]
[BlackElo "1914"]
[TimeControl "180+2"]
[EndTime "11:37:10 PDT"]
[Termination "Victoria de rususs por tiempo"]

1. e4 {[%clk 0:03:01.9]} 1... c5 {[%clk 0:03:00.7]} 2. Nf3 {[%clk 0:03:03.1]}
2... e6 {[%clk 0:03:01.6]} 3. d4 {[%clk 0:03:04.3]} 3... cxd4 {[%clk 0:03:03.5]}
4. Nxd4 {[%clk 0:03:05.6]} 4... Nc6 {[%clk 0:03:05.1]} 5. Nc3 {[%clk 0:03:06.7]}
5... Qc7 {[%clk 0:03:06.4]} 6. g3 {[%clk 0:02:55.6]} 6... a6 {[%clk 0:03:05.4]}
7. Bg2 {[%clk 0:02:56.2]} 7... Nf6 {[%clk 0:03:04.1]} 8. O-O {[%clk 0:02:56.5]}
8... Nxd4 {[%clk 0:03:05.3]} 9. Qxd4 {[%clk 0:02:57]} 9... Bc5 {[%clk
0:03:06.4]} 10. Qd3 {[%clk 0:02:57.2]} 10... h6 {[%clk 0:03:04.8]} 11. Be3
{[%clk 0:02:47.9]} 11... d6 {[%clk 0:03:04]} 12. h3 {[%clk 0:02:42.1]} 12... O-O
{[%clk 0:03:04]} 13. Kh2 {[%clk 0:02:40.8]} 13... e5 {[%clk 0:02:50.2]} 14. f4
{[%clk 0:02:25.4]} 14... b5 {[%clk 0:02:41]} 15. a3 {[%clk 0:02:21.8]} 15... Be6
{[%clk 0:02:39.9]} 16. f5 {[%clk 0:01:55.9]} 16... Bc4 {[%clk 0:02:38.4]} 17.
Qd2 {[%clk 0:01:54.1]} 17... Bxf1 {[%clk 0:02:37.1]} 18. Rxf1 {[%clk 0:01:55.5]}
18... Bxe3 {[%clk 0:02:36.1]} 19. Qxe3 {[%clk 0:01:55.8]} 19... Qc5 {[%clk
0:02:36.7]} 20. Qf3 {[%clk 0:01:28.7]} 20... b4 {[%clk 0:02:30.5]} 21. axb4
{[%clk 0:01:22.1]} 21... Qxb4 {[%clk 0:02:32.4]} 22. g4 {[%clk 0:00:43.2]} 22...
Qxb2 {[%clk 0:02:26.6]} 23. Ne2 {[%clk 0:00:42.5]} 23... Rac8 {[%clk 0:02:19.6]}
24. c3 {[%clk 0:00:33.6]} 24... Rfd8 {[%clk 0:01:56.1]} 25. h4 {[%clk
0:00:33.8]} 25... d5 {[%clk 0:01:55.5]} 26. exd5 {[%clk 0:00:20.4]} 26... Nxd5
{[%clk 0:01:54.3]} 27. g5 {[%clk 0:00:17]} 27... Nxc3 {[%clk 0:01:35.9]} 28. Ng3
{[%clk 0:00:05]} 28... e4 {[%clk 0:01:19.9]} 29. Qg4 {[%clk 0:00:03]} 29... Rd2
{[%clk 0:01:08.5]} 30. Rg1 {[%clk 0:00:04]} 30... hxg5 {[%clk 0:00:52.9]} 31.
Qxg5 {[%clk 0:00:04.8]} 31... Ne2 {[%clk 0:00:32]} 32. f6 {[%clk 0:00:03.5]}
32... Qxf6 {[%clk 0:00:28.6]} 33. Qxd2 {[%clk 0:00:04.9]} 33... Nxg3 {[%clk
0:00:24.9]} 34. Kxg3 {[%clk 0:00:03.6]} 34... Qe5+ {[%clk 0:00:22.4]} 35. Kf2
{[%clk 0:00:03.1]} 35... e3+ {[%clk 0:00:18.4]} 36. Qxe3 {[%clk 0:00:03.1]}
36... Rc2+ {[%clk 0:00:20]} 37. Kf3 {[%clk 0:00:03.4]} 37... Rc3 {[%clk
0:00:21.3]} 38. Re1 {[%clk 0:00:02.5]} 38... Rxe3+ {[%clk 0:00:20.4]} 39. Rxe3
{[%clk 0:00:03.7]} 39... Qf6+ {[%clk 0:00:20.1]} 40. Ke2 {[%clk 0:00:04.3]}
40... Qxh4 {[%clk 0:00:16.8]} 41. Re8+ {[%clk 0:00:03]} 41... Kh7 {[%clk
0:00:17.2]} 42. Re3 {[%clk 0:00:03]} 42... Qc4+ {[%clk 0:00:17.1]} 43. Kf2
{[%clk 0:00:03.6]} 43... a5 {[%clk 0:00:16.6]} 44. Be4+ {[%clk 0:00:03.7]} 44...
g6 {[%clk 0:00:17]} 45. Bd3 {[%clk 0:00:02.7]} 45... Qd4 {[%clk 0:00:17.1]} 46.
Ke2 {[%clk 0:00:03]} 46... Qb2+ {[%clk 0:00:17.5]} 47. Kf3 {[%clk 0:00:04]}
47... a4 {[%clk 0:00:18.1]} 48. Re7 {[%clk 0:00:02.9]} 48... Kg7 {[%clk
0:00:17.1]} 0

[Event "Open Nuevo Centro. Jornada 2"]
[Site "Chess.com"]
[Date "2020.06.26"]
[Round "6"]
[White "Gracia Calvo, Andrés"]
[Black "Camison Zornoza, Cesar"]
[Result "1-0"]
[WhiteElo "1818"]
[BlackElo "1709"]
[TimeControl "180+2"]
[EndTime "11:37:11 PDT"]
[Termination "Victoria de andresjaque21 por tiempo"]

1. d4 {[%clk 0:03:00.7]} 1... Nf6 {[%clk 0:03:00.4]} 2. Nf3 {[%clk 0:03:01.7]}
2... c5 {[%clk 0:03:01.5]} 3. c3 {[%clk 0:03:00.9]} 3... cxd4 {[%clk 0:03:02.7]}
4. cxd4 {[%clk 0:03:02]} 4... g6 {[%clk 0:03:04.1]} 5. Bf4 {[%clk 0:03:02.5]}
5... Bg7 {[%clk 0:03:05]} 6. e3 {[%clk 0:03:03.7]} 6... O-O {[%clk 0:03:04.7]}
7. Be2 {[%clk 0:03:04.7]} 7... Qb6 {[%clk 0:03:05.5]} 8. Qc2 {[%clk 0:03:00.6]}
8... Nc6 {[%clk 0:03:05.8]} 9. Nc3 {[%clk 0:02:59.4]} 9... d6 {[%clk 0:03:05.9]}
10. O-O {[%clk 0:02:58.6]} 10... Nb4 {[%clk 0:03:06.8]} 11. Qb3 {[%clk
0:02:57.6]} 11... Be6 {[%clk 0:02:58.4]} 12. Qd1 {[%clk 0:02:43.7]} 12... Rac8
{[%clk 0:02:57.6]} 13. a3 {[%clk 0:02:43.6]} 13... Na6 {[%clk 0:02:56.2]} 14.
Qd2 {[%clk 0:02:36.8]} 14... Bc4 {[%clk 0:02:47]} 15. Rac1 {[%clk 0:02:30.2]}
15... Bxe2 {[%clk 0:02:46]} 16. Qxe2 {[%clk 0:02:28.1]} 16... Nh5 {[%clk
0:02:43]} 17. Bg5 {[%clk 0:02:27.1]} 17... Rfe8 {[%clk 0:02:40.7]} 18. Nd5
{[%clk 0:02:18]} 18... Qd8 {[%clk 0:02:38]} 19. b4 {[%clk 0:02:12.2]} 19... Nc7
{[%clk 0:02:35.1]} 20. Nxc7 {[%clk 0:02:07.2]} 20... Rxc7 {[%clk 0:02:36]} 21.
Rxc7 {[%clk 0:02:06.8]} 21... Qxc7 {[%clk 0:02:37.2]} 22. Qd2 {[%clk 0:02:01.4]}
22... Nf6 {[%clk 0:02:37.3]} 23. Rc1 {[%clk 0:01:59.8]} 23... Qd7 {[%clk
0:02:38.1]} 24. Qd3 {[%clk 0:01:56.4]} 24... a6 {[%clk 0:02:35.6]} 25. Nd2
{[%clk 0:01:52.3]} 25... b5 {[%clk 0:02:31.8]} 26. Ne4 {[%clk 0:01:50.2]} 26...
Nxe4 {[%clk 0:02:29.3]} 27. Qxe4 {[%clk 0:01:50.5]} 27... Rc8 {[%clk 0:01:52]}
28. Rxc8+ {[%clk 0:01:37.7]} 28... Qxc8 {[%clk 0:01:52.5]} 29. h3 {[%clk
0:01:37.6]} 29... e6 {[%clk 0:01:52.8]} 30. Qd3 {[%clk 0:01:26]} 30... d5 {[%clk
0:01:50.6]} 31. Be7 {[%clk 0:01:20.8]} 31... Bf8 {[%clk 0:01:49.5]} 32. Bc5
{[%clk 0:01:17.7]} 32... Bxc5 {[%clk 0:01:43.8]} 33. dxc5 {[%clk 0:01:16.9]}
33... Qc6 {[%clk 0:01:31.6]} 34. Qd4 {[%clk 0:01:16.8]} 34... Qc7 {[%clk
0:01:28.5]} 35. Qf6 {[%clk 0:01:09]} 35... a5 {[%clk 0:01:26.6]} 36. g3 {[%clk
0:01:02.5]} 36... axb4 {[%clk 0:01:26.9]} 37. axb4 {[%clk 0:01:03.1]} 37... Qa7
{[%clk 0:01:20]} 38. Qd8+ {[%clk 0:01:01]} 38... Kg7 {[%clk 0:01:20.6]} 39. c6
{[%clk 0:01:00.3]} 39... Qa1+ {[%clk 0:01:20.7]} 40. Kg2 {[%clk 0:01:00.6]}
40... Qb1 {[%clk 0:01:12.9]} 41. c7 {[%clk 0:00:56.6]} 41... Qe4+ {[%clk
0:01:13]} 42. Kh2 {[%clk 0:00:50]} 42... Qf3 {[%clk 0:01:10.1]} 43. Kg1 {[%clk
0:00:47.2]} 43... Qd1+ {[%clk 0:00:57.2]} 44. Kg2 {[%clk 0:00:47.8]} 44... Qc2
{[%clk 0:00:56.5]} 45. c8=Q {[%clk 0:00:47.5]} 45... Qe4+ {[%clk 0:00:57.5]} 46.
Kh2 {[%clk 0:00:42]} 46... Qf3 {[%clk 0:00:55.1]} 47. Qc3+ {[%clk 0:00:41.7]}
47... Kh6 {[%clk 0:00:48.9]} 48. Qh4+ {[%clk 0:00:41.3]} 48... Qh5 {[%clk
0:00:46.9]} 49. Qxh5+ {[%clk 0:00:41.7]} 49... Kxh5 {[%clk 0:00:48.2]} 50. Qc5
{[%clk 0:00:42.4]} 50... Kh6 {[%clk 0:00:46]} 51. Qxb5 {[%clk 0:00:43.4]} 1

[Event "Open Nuevo Centro. Jornada 2"]
[Site "Chess.com"]
[Date "2020.06.26"]
[Round "6"]
[White "Giaccio González, Alfredo Gustavo"]
[Black "García Oviedo, Alejandro"]
[Result "0-1"]
[WhiteElo "2353"]
[BlackElo "1899"]
[TimeControl "180+2"]
[EndTime "11:37:23 PDT"]
[Termination "Victoria de alexgarov por abandono"]

1. e4 {[%clk 0:03:01.9]} 1... d5 {[%clk 0:02:57.2]} 2. exd5 {[%clk 0:03:02.4]}
2... Qxd5 {[%clk 0:02:59.1]} 3. Nf3 {[%clk 0:03:02.9]} 3... Nf6 {[%clk
0:03:00.4]} 4. d4 {[%clk 0:03:03.4]} 4... Bf5 {[%clk 0:03:01.5]} 5. Be2 {[%clk
0:03:04.9]} 5... e6 {[%clk 0:03:02.7]} 6. O-O {[%clk 0:03:05.6]} 6... Be7 {[%clk
0:03:04.4]} 7. Be3 {[%clk 0:03:06.9]} 7... O-O {[%clk 0:03:05.6]} 8. c4 {[%clk
0:03:08.4]} 8... Qd8 {[%clk 0:03:06.8]} 9. Nc3 {[%clk 0:03:06.1]} 9... Nbd7
{[%clk 0:03:07.9]} 10. h3 {[%clk 0:03:05.5]} 10... h6 {[%clk 0:03:08.2]} 11. Qb3
{[%clk 0:03:05.1]} 11... Qc8 {[%clk 0:03:02.8]} 12. Rad1 {[%clk 0:03:05.5]}
12... c6 {[%clk 0:03:04.1]} 13. Rfe1 {[%clk 0:03:04.4]} 13... Ne4 {[%clk
0:03:01.9]} 14. Bf1 {[%clk 0:02:46.5]} 14... Nxc3 {[%clk 0:02:56.6]} 15. Qxc3
{[%clk 0:02:46.9]} 15... Bd6 {[%clk 0:02:52.9]} 16. Ne5 {[%clk 0:02:38.7]} 16...
Qc7 {[%clk 0:02:33.9]} 17. f4 {[%clk 0:02:38.5]} 17... Nf6 {[%clk 0:02:28.9]}
18. g4 {[%clk 0:02:31.3]} 18... Bh7 {[%clk 0:02:18]} 19. Bg2 {[%clk 0:02:30.9]}
19... Ne4 {[%clk 0:02:15.2]} 20. Qc2 {[%clk 0:02:13.3]} 20... Bb4 {[%clk
0:02:14.2]} 21. Bxe4 {[%clk 0:02:11.8]} 21... Bxe4 {[%clk 0:02:14.5]} 22. Qxe4
{[%clk 0:02:11.9]} 22... Bxe1 {[%clk 0:02:14.1]} 23. Rxe1 {[%clk 0:02:13.8]}
23... Rad8 {[%clk 0:02:12.8]} 24. Bf2 {[%clk 0:01:54.7]} 24... Qa5 {[%clk
0:01:57.1]} 25. a3 {[%clk 0:01:49.7]} 25... Qd2 {[%clk 0:01:57.2]} 26. Qe2
{[%clk 0:01:47.3]} 26... Qxf4 {[%clk 0:01:54.5]} 27. Kg2 {[%clk 0:01:44]} 27...
Qf6 {[%clk 0:01:45.5]} 28. Rf1 {[%clk 0:01:41.5]} 28... Qe7 {[%clk 0:01:44.4]}
29. Be3 {[%clk 0:01:32.2]} 29... c5 {[%clk 0:01:38.2]} 30. dxc5 {[%clk
0:01:30.9]} 30... a5 {[%clk 0:01:37.9]} 31. b4 {[%clk 0:01:30.6]} 31... Qc7
{[%clk 0:01:29.3]} 32. Bf4 {[%clk 0:01:29.2]} 32... Rd4 {[%clk 0:01:21.9]} 33.
Ng6 {[%clk 0:01:22.2]} 33... Qc6+ {[%clk 0:01:21.7]} 34. Kg3 {[%clk 0:01:17.5]}
34... fxg6 {[%clk 0:01:22.8]} 35. Bd6 {[%clk 0:00:29.2]} 35... Rxd6 {[%clk
0:01:17.6]} 36. Rxf8+ {[%clk 0:00:27.7]} 36... Kxf8 {[%clk 0:01:19.5]} 37. cxd6
{[%clk 0:00:28.3]} 37... Qxd6+ {[%clk 0:01:20.8]} 38. Kg2 {[%clk 0:00:28.5]}
38... axb4 {[%clk 0:01:21.6]} 39. Qf3+ {[%clk 0:00:27.3]} 39... Kg8 {[%clk
0:01:21.8]} 40. Qxb7 {[%clk 0:00:27.7]} 40... Qd2+ {[%clk 0:01:21.2]} 41. Kg1
{[%clk 0:00:22.3]} 41... bxa3 {[%clk 0:01:22.2]} 42. Qa8+ {[%clk 0:00:21.9]}
42... Kh7 {[%clk 0:01:23.3]} 43. Qxa3 {[%clk 0:00:23.7]} 43... Qd4+ {[%clk
0:01:23]} 44. Kg2 {[%clk 0:00:24.1]} 44... Qxc4 {[%clk 0:01:24.4]} 45. Qe3
{[%clk 0:00:24.9]} 45... Qd5+ {[%clk 0:01:23.7]} 46. Kg3 {[%clk 0:00:26.3]}
46... e5 {[%clk 0:01:24.2]} 47. h4 {[%clk 0:00:25.1]} 47... Qe6 {[%clk
0:01:17.8]} 48. Qe4 {[%clk 0:00:25.3]} 48... Qb3+ {[%clk 0:01:16.3]} 49. Kg2
{[%clk 0:00:25.5]} 49... Qc3 {[%clk 0:01:16.5]} 50. h5 {[%clk 0:00:24.3]} 50...
Qd2+ {[%clk 0:01:16.8]} 51. Kg3 {[%clk 0:00:24.3]} 51... Qg5 {[%clk 0:01:12.1]}
52. hxg6+ {[%clk 0:00:24.6]} 52... Qxg6 {[%clk 0:01:13.5]} 53. Qxe5 {[%clk
0:00:25.8]} 53... Qd3+ {[%clk 0:01:12.8]} 54. Kg2 {[%clk 0:00:24.8]} 54... Kg6
{[%clk 0:01:11.5]} 55. Kf2 {[%clk 0:00:22]} 55... Qd2+ {[%clk 0:01:09.1]} 56.
Kf3 {[%clk 0:00:22.4]} 56... Qd1+ {[%clk 0:01:08.7]} 57. Kf2 {[%clk 0:00:22.4]}
57... Qxg4 {[%clk 0:01:09.4]} 58. Qd6+ {[%clk 0:00:22.8]} 58... Kh7 {[%clk
0:01:08]} 59. Qd3+ {[%clk 0:00:22.4]} 59... Qg6 {[%clk 0:01:06.2]} 60. Qd4
{[%clk 0:00:23.3]} 60... Qf6+ {[%clk 0:01:07.1]} 61. Qxf6 {[%clk 0:00:23.1]}
61... gxf6 {[%clk 0:01:09]} 62. Kg3 {[%clk 0:00:23.9]} 62... Kg6 {[%clk
0:01:10.9]} 0

[Event "Open Nuevo Centro. Jornada 2"]
[Site "Chess.com"]
[Date "2020.06.26"]
[Round "6"]
[White "Aguado, Pablo Luis"]
[Black "Gil López, Alejandro"]
[Result "1/2-1/2"]
[WhiteElo "1806"]
[BlackElo "2108"]
[TimeControl "180+2"]
[EndTime "11:37:31 PDT"]
[Termination "Tablas por repeticiÃ³n de movimientos"]

1. d4 {[%clk 0:03:01.9]} 1... e5 {[%clk 0:03:00.3]} 2. dxe5 {[%clk 0:02:48.9]}
2... d6 {[%clk 0:03:01.7]} 3. exd6 {[%clk 0:02:48.6]} 3... Bxd6 {[%clk
0:03:02.2]} 4. Nf3 {[%clk 0:02:48.9]} 4... Nc6 {[%clk 0:03:02.9]} 5. Nc3 {[%clk
0:02:45.3]} 5... Bg4 {[%clk 0:03:03.4]} 6. e3 {[%clk 0:02:42.4]} 6... Qe7 {[%clk
0:03:01.5]} 7. Be2 {[%clk 0:02:43]} 7... O-O-O {[%clk 0:03:01.7]} 8. Bd2 {[%clk
0:02:40.5]} 8... Nf6 {[%clk 0:02:56.6]} 9. O-O {[%clk 0:02:40.1]} 9... h5 {[%clk
0:02:56.8]} 10. Nd4 {[%clk 0:02:36.2]} 10... Nxd4 {[%clk 0:02:53.3]} 11. exd4
{[%clk 0:02:36.1]} 11... Rhe8 {[%clk 0:02:51.2]} 12. Re1 {[%clk 0:02:32.5]}
12... Qd7 {[%clk 0:02:52.4]} 13. Bg5 {[%clk 0:02:21.7]} 13... Qf5 {[%clk
0:02:46.3]} 14. Be3 {[%clk 0:02:18.9]} 14... Bxe2 {[%clk 0:02:37.3]} 15. Qxe2
{[%clk 0:02:07.3]} 15... Ng4 {[%clk 0:02:38.6]} 16. h3 {[%clk 0:01:50.1]} 16...
Nxe3 {[%clk 0:02:39.3]} 17. fxe3 {[%clk 0:01:51.9]} 17... Qg5 {[%clk 0:02:40.4]}
18. Qf3 {[%clk 0:01:48.4]} 18... f6 {[%clk 0:02:35.3]} 19. Re2 {[%clk
0:01:46.9]} 19... Kb8 {[%clk 0:02:33.2]} 20. Rf1 {[%clk 0:01:46.1]} 20... a6
{[%clk 0:02:27.7]} 21. e4 {[%clk 0:01:28.9]} 21... Re7 {[%clk 0:02:01.1]} 22.
Nd5 {[%clk 0:01:24.9]} 22... Ree8 {[%clk 0:01:56.3]} 23. c4 {[%clk 0:01:19.7]}
23... c6 {[%clk 0:01:53]} 24. Nc3 {[%clk 0:01:13.8]} 24... Bc7 {[%clk
0:01:41.8]} 25. Rd1 {[%clk 0:01:12.9]} 25... Bb6 {[%clk 0:01:34.7]} 26. c5
{[%clk 0:01:13.1]} 26... Bc7 {[%clk 0:01:35.9]} 27. d5 {[%clk 0:01:01.5]} 27...
cxd5 {[%clk 0:01:18.4]} 28. Nxd5 {[%clk 0:01:00.6]} 28... f5 {[%clk 0:00:57.2]}
29. exf5 {[%clk 0:00:19.3]} 29... Rxe2 {[%clk 0:00:56]} 30. Qxe2 {[%clk
0:00:20.3]} 30... Qxf5 {[%clk 0:00:55.8]} 31. Nxc7 {[%clk 0:00:18.9]} 31...
Rxd1+ {[%clk 0:00:53.5]} 32. Qxd1 {[%clk 0:00:19.8]} 32... Kxc7 {[%clk
0:00:53.5]} 33. Qc1 {[%clk 0:00:19.7]} 33... Kc6 {[%clk 0:00:49.4]} 34. b4
{[%clk 0:00:19.4]} 34... Qe5 {[%clk 0:00:47.4]} 35. a3 {[%clk 0:00:19.6]} 35...
h4 {[%clk 0:00:45.9]} 36. Kh1 {[%clk 0:00:20.4]} 36... g5 {[%clk 0:00:43.5]} 37.
Kg1 {[%clk 0:00:19.2]} 37... Kb5 {[%clk 0:00:40.4]} 38. Kh1 {[%clk 0:00:19.8]}
38... a5 {[%clk 0:00:37.2]} 39. Qc2 {[%clk 0:00:17.9]} 39... axb4 {[%clk
0:00:28.8]} 40. axb4 {[%clk 0:00:18.2]} 40... Qe1+ {[%clk 0:00:27.3]} 41. Kh2
{[%clk 0:00:18.8]} 41... Qxb4 {[%clk 0:00:26.7]} 42. Qd3+ {[%clk 0:00:18.8]}
42... Kxc5 {[%clk 0:00:25.2]} 43. Qe3+ {[%clk 0:00:19.5]} 43... Kc6 {[%clk
0:00:20.6]} 44. Qxg5 {[%clk 0:00:19.1]} 44... Qd6+ {[%clk 0:00:21.2]} 45. Kh1
{[%clk 0:00:19.1]} 45... Qd1+ {[%clk 0:00:17.8]} 46. Kh2 {[%clk 0:00:20.1]}
46... Qd6+ {[%clk 0:00:19]} 47. Kh1 {[%clk 0:00:20.9]} 47... Qg3 {[%clk
0:00:15.6]} 48. Qc1+ {[%clk 0:00:20.5]} 48... Kd6 {[%clk 0:00:13.4]} 49. Qd2+
{[%clk 0:00:21.2]} 49... Kc6 {[%clk 0:00:14.3]} 50. Qc2+ {[%clk 0:00:21.9]}
50... Kb6 {[%clk 0:00:15.4]} 51. Qb2+ {[%clk 0:00:22.5]} 51... Kc6 {[%clk
0:00:15]} 52. Qf6+ {[%clk 0:00:23.3]} 52... Kc5 {[%clk 0:00:15]} 53. Qf5+ {[%clk
0:00:23.5]} 53... Kc4 {[%clk 0:00:09.3]} 54. Qe4+ {[%clk 0:00:23.9]} 54... Kc3
{[%clk 0:00:09.9]} 55. Qxb7 {[%clk 0:00:22.6]} 55... Qe1+ {[%clk 0:00:11.2]} 56.
Kh2 {[%clk 0:00:23.4]} 56... Qg3+ {[%clk 0:00:12.5]} 57. Kh1 {[%clk 0:00:24.8]}
57... Qe1+ {[%clk 0:00:13.8]} 58. Kh2 {[%clk 0:00:26.2]} 58... Qg3+ {[%clk
0:00:15.2]} 59. Kh1 {[%clk 0:00:27.6]} 1/2-1

[Event "Open Nuevo Centro. Jornada 2"]
[Site "Chess.com"]
[Date "2020.06.26"]
[Round "6"]
[White "Mora Bort, Miguel Ángel"]
[Black "Cebolla Ruiz, David"]
[Result "0-1"]
[WhiteElo "1154"]
[BlackElo "1566"]
[TimeControl "180+2"]
[EndTime "11:37:56 PDT"]
[Termination "Victoria de Dabelcebolla por tiempo"]

1. d4 {[%clk 0:03:01.9]} 1... Nf6 {[%clk 0:02:59.8]} 2. c4 {[%clk 0:03:02.2]}
2... g6 {[%clk 0:03:00.1]} 3. Nc3 {[%clk 0:03:03.1]} 3... Bg7 {[%clk 0:02:47.1]}
4. e4 {[%clk 0:03:01]} 4... d6 {[%clk 0:02:48.2]} 5. Nf3 {[%clk 0:02:56.6]} 5...
O-O {[%clk 0:02:48.8]} 6. Be2 {[%clk 0:02:48]} 6... e5 {[%clk 0:02:48.3]} 7. d5
{[%clk 0:02:47.6]} 7... a5 {[%clk 0:02:44.7]} 8. O-O {[%clk 0:02:46.7]} 8... Na6
{[%clk 0:02:43.5]} 9. Be3 {[%clk 0:02:44.9]} 9... Nh5 {[%clk 0:02:39.8]} 10. Nd2
{[%clk 0:02:34.5]} 10... Nf4 {[%clk 0:02:30.8]} 11. Bxf4 {[%clk 0:02:33.4]}
11... exf4 {[%clk 0:02:31.8]} 12. Bg4 {[%clk 0:02:32.7]} 12... Bxg4 {[%clk
0:02:17.8]} 13. Qxg4 {[%clk 0:02:31.8]} 13... Bxc3 {[%clk 0:02:14.8]} 14. bxc3
{[%clk 0:02:32]} 14... Qf6 {[%clk 0:02:10.3]} 15. Rac1 {[%clk 0:02:27.9]} 15...
Nc5 {[%clk 0:02:06.5]} 16. Qf3 {[%clk 0:02:25.4]} 16... Rfe8 {[%clk 0:02:01.1]}
17. Rfe1 {[%clk 0:02:23.9]} 17... Qe5 {[%clk 0:01:53.3]} 18. Nb3 {[%clk
0:02:23.1]} 18... Nxb3 {[%clk 0:01:49.9]} 19. axb3 {[%clk 0:02:23.3]} 19... a4
{[%clk 0:01:48.5]} 20. bxa4 {[%clk 0:02:17.9]} 20... Rxa4 {[%clk 0:01:49.1]} 21.
c5 {[%clk 0:02:17.1]} 21... dxc5 {[%clk 0:01:45.9]} 22. c4 {[%clk 0:02:13.3]}
22... Ra2 {[%clk 0:01:30.2]} 23. Qb3 {[%clk 0:02:10.8]} 23... Ra7 {[%clk
0:01:24.5]} 24. Qb5 {[%clk 0:02:06.7]} 24... b6 {[%clk 0:01:22.8]} 25. Qc6
{[%clk 0:01:45.3]} 25... Rd8 {[%clk 0:01:12.5]} 26. f3 {[%clk 0:01:36.1]} 26...
Rd6 {[%clk 0:01:10.8]} 27. Qb5 {[%clk 0:01:28.9]} 27... Ra5 {[%clk 0:01:11]} 28.
Qb3 {[%clk 0:01:26.8]} 28... Qd4+ {[%clk 0:01:09.9]} 29. Kh1 {[%clk 0:01:23]}
29... Qd2 {[%clk 0:01:09]} 30. Red1 {[%clk 0:01:12.2]} 30... Qb4 {[%clk
0:01:08.4]} 31. Qc3 {[%clk 0:00:55.6]} 31... Qxc3 {[%clk 0:01:08.6]} 32. Rxc3
{[%clk 0:00:55.3]} 32... c6 {[%clk 0:01:08.5]} 33. Rb1 {[%clk 0:00:49.7]} 33...
cxd5 {[%clk 0:01:01.4]} 34. cxd5 {[%clk 0:00:47.1]} 34... Rd8 {[%clk 0:00:51.4]}
35. h3 {[%clk 0:00:40.2]} 35... Ra6 {[%clk 0:00:29]} 36. Rcb3 {[%clk 0:00:37.9]}
36... Rb8 {[%clk 0:00:28.6]} 37. Rd3 {[%clk 0:00:36.6]} 37... Kf8 {[%clk
0:00:28.5]} 38. d6 {[%clk 0:00:36.8]} 38... Ke8 {[%clk 0:00:28.5]} 39. d7+
{[%clk 0:00:36.3]} 39... Kd8 {[%clk 0:00:29.5]} 40. Rbd1 {[%clk 0:00:33.6]}
40... Rb7 {[%clk 0:00:29.2]} 41. Rd6 {[%clk 0:00:31.4]} 41... Raa7 {[%clk
0:00:28.6]} 42. Rb1 {[%clk 0:00:26.5]} 42... Rxd7 {[%clk 0:00:21.6]} 43. Rdxb6
{[%clk 0:00:23.9]} 43... Rd2 {[%clk 0:00:19]} 44. R6b5 {[%clk 0:00:16.1]} 44...
Raa2 {[%clk 0:00:18.7]} 45. Rg1 {[%clk 0:00:15]} 45... c4 {[%clk 0:00:18.8]} 46.
Rc5 {[%clk 0:00:14.1]} 46... Rd4 {[%clk 0:00:17.6]} 47. Rd5+ {[%clk 0:00:10.7]}
47... Rxd5 {[%clk 0:00:18.4]} 48. exd5 {[%clk 0:00:11.7]} 48... Kd7 {[%clk
0:00:19.9]} 49. Rc1 {[%clk 0:00:11.5]} 49... Ra4 {[%clk 0:00:18.7]} 50. Rc3
{[%clk 0:00:09.2]} 50... Kd6 {[%clk 0:00:19.6]} 51. Kg1 {[%clk 0:00:09.6]} 51...
Kxd5 {[%clk 0:00:20.7]} 52. Kf2 {[%clk 0:00:10]} 52... Kd4 {[%clk 0:00:22.3]}
53. Rc1 {[%clk 0:00:09.8]} 53... c3 {[%clk 0:00:22.3]} 54. Ke1 {[%clk
0:00:09.9]} 54... Kd3 {[%clk 0:00:21]} 55. Rd1+ {[%clk 0:00:08.3]} 55... Ke3
{[%clk 0:00:19.7]} 56. Rc1 {[%clk 0:00:08.4]} 56... Ra3 {[%clk 0:00:19.3]} 57.
Kd1 {[%clk 0:00:06.1]} 57... Kd3 {[%clk 0:00:20]} 58. Rb1 {[%clk 0:00:05.2]}
58... c2+ {[%clk 0:00:20.5]} 59. Kc1 {[%clk 0:00:03.7]} 59... cxb1=Q+ {[%clk
0:00:21.3]} 0